Workbook

Sheet SentimentConfig
A1: ID | B1: name | D1: icon | E1: mainSentimentEffect | F1: sentimentEffect
A2: int | B2: int | D2: string | E2: int | F2: int[]
A4: modelID | B4: 名称 | D4: 图片 | E4: 核心感悟点 | F4: 支线感悟点
A5: 1 | B5: 3078 | C5: 逍遥自在 | E5: 1 | F5: =_xlfn.TEXTJOIN(";",1,G5:L5) -> 111;112;113;114;115;116 | G5: 111 | H5: 112 | I5: 113 | J5: 114 | K5: 115 | L5: 116
A6: 2 | B6: 3079 | C6: 万法归一 | E6: 2 | F6: =_xlfn.TEXTJOIN(";",1,G6:L6) -> 121;122;123;124;125;126 | G6: 121 | H6: 122 | I6: 123 | J6: 124 | K6: 125 | L6: 126
A7: 3 | B7: 3080 | C7: 出神入化 | E7: 3 | F7: 131;132;133;134;135;136 | G7: 131 | H7: 132 | I7: 133 | J7: 134 | K7: 135 | L7: 136
A8: 4 | B8: 3081 | C8: 无我无相 | E8: 4 | F8: 141;142;143;144;145;146 | G8: 141 | H8: 142 | I8: 143 | J8: 144 | K8: 145 | L8: 146
A9: 5 | B9: 3082 | C9: 天人合一 | E9: 5 | F9: 151;152;153;154;155;156 | G9: 151 | H9: 152 | I9: 153 | J9: 154 | K9: 155 | L9: 156
A10: 6 | B10: 3083 | C10: 超脱生死 | E10: 6 | F10: 161;162;163;164;165;166 | G10: 161 | H10: 162 | I10: 163 | J10: 164 | K10: 165 | L10: 166
A11: 7 | B11: 3084 | C11: 无为至尊 | E11: 7 | F11: 171;172;173;174;175;176 | G11: 171 | H11: 172 | I11: 173 | J11: 174 | K11: 175 | L11: 176

Sheet SentimentEffectConfig
A1: ID | B1: groupId | C1: level | D1: name | F1: icon | G1: massge | I1: effectType | J1: effectVale | K1: upConstItemId | L1: upConstCount
A2: int | B2: int | C2: int | D2: int | F2: string | G2: int | I2: int | J2: int[] | K2: int | L2: int
A4: modelID | B4: id组 | C4: 等级 | D4: 名字 | F4: 图标 | G4: 描述 | I4: 见条件类型表 | J4: 效果值 | K4: 消耗 | L4: 消耗数量
A5: 101 | B5: 1 | C5: 1 | D5: 3085 | E5: =CONCATENATE("主感悟-",B5) -> 主感悟-1 | F5: icon | G5: 3134 | H5: 星辰道可以获得充能，充能满后启动星辰道，转盘速度增加10% | I5: 99 | J5: 60101 | K5: 1 | L5: 1 | N5: 3085 | O5: 3134
A6: 102 | B6: 1 | C6: 2 | D6: 3085 | E6: =CONCATENATE("主感悟-",B6) -> 主感悟-1 | F6: icon | G6: 3134 | I6: 99 | J6: 60101 | K6: 1 | L6: 1 | N6: 3085 | O6: 3134
A7: 103 | B7: 1 | C7: 3 | D7: 3085 | E7: 主感悟-1 | F7: icon | G7: 3134 | I7: 99 | J7: 60101 | K7: 1 | L7: 1 | N7: 3085 | O7: 3134
A8: 104 | B8: 1 | C8: 4 | D8: 3085 | E8: 主感悟-1 | F8: icon | G8: 3134 | I8: 99 | J8: 60101 | K8: 1 | L8: 1 | N8: 3085 | O8: 3134
A9: 105 | B9: 1 | C9: 5 | D9: 3085 | E9: 主感悟-1 | F9: icon | G9: 3134 | I9: 99 | J9: 60101 | K9: 1 | L9: 1 | N9: 3085 | O9: 3134
A11: =A5+10 -> 111 | B11: =B5+1 -> 2 | C11: 1 | D11: =D5+1 -> 3086 | E11: =CONCATENATE("主感悟-",B11) -> 主感悟-2 | F11: icon | G11: =G5+1 -> 3135 | H11: 启动期间功法在对碰时受到的克制影响降低80% | I11: 99 | J11: =J5+1 -> 60102 | K11: 1 | L11: 1 | N11: =N5+1 -> 3086 | O11: =O5+1 -> 3135
A12: =A6+10 -> 112 | B12: =B6+1 -> 2 | C12: 2 | D12: =D6+1 -> 3086 | E12: =CONCATENATE("主感悟-",B12) -> 主感悟-2 | F12: icon | G12: =G6+1 -> 3135 | I12: 99 | J12: =J6+1 -> 60102 | K12: 1 | L12: 1 | N12: =N6+1 -> 3086 | O12: 3135
A13: 113 | B13: 2 | C13: 3 | D13: 3086 | E13: 主感悟-2 | F13: icon | G13: 3135 | I13: 99 | J13: 60102 | K13: 1 | L13: 1 | N13: 3086 | O13: 3135
A14: 114 | B14: 2 | C14: 4 | D14: 3086 | E14: 主感悟-2 | F14: icon | G14: 3135 | I14: 99 | J14: 60102 | K14: 1 | L14: 1 | N14: 3086 | O14: 3135
A15: 115 | B15: 2 | C15: 5 | D15: 3086 | E15: 主感悟-2 | F15: icon | G15: 3135 | I15: 99 | J15: 60102 | K15: 1 | L15: 1 | N15: 3086 | O15: 3135
A17: =A11+10 -> 121 | B17: =B11+1 -> 3 | C17: 1 | D17: =D11+1 -> 3087 | E17: =CONCATENATE("主感悟-",B17) -> 主感悟-3 | F17: icon | G17: =G11+1 -> 3136 | H17: 启动期间没使用一个功法生命恢复2% | I17: 99 | J17: =J11+1 -> 60103 | K17: 1 | L17: 1 | N17: =N11+1 -> 3087 | O17: =O11+1 -> 3136
A18: =A12+10 -> 122 | B18: =B12+1 -> 3 | C18: 2 | D18: =D12+1 -> 3087 | E18: =CONCATENATE("主感悟-",B18) -> 主感悟-3 | F18: icon | G18: =G12+1 -> 3136 | I18: 99 | J18: =J12+1 -> 60103 | K18: 1 | L18: 1 | N18: =N12+1 -> 3087 | O18: 3136
A19: 123 | B19: 3 | C19: 3 | D19: 3087 | E19: 主感悟-3 | F19: icon | G19: 3136 | I19: 99 | J19: 60103 | K19: 1 | L19: 1 | N19: 3087 | O19: 3136
A20: 124 | B20: 3 | C20: 4 | D20: 3087 | E20: 主感悟-3 | F20: icon | G20: 3136 | I20: 99 | J20: 60103 | K20: 1 | L20: 1 | N20: 3087 | O20: 3136
A21: 125 | B21: 3 | C21: 5 | D21: 3087 | E21: 主感悟-3 | F21: icon | G21: 3136 | I21: 99 | J21: 60103 | K21: 1 | L21: 1 | N21: 3087 | O21: 3136
A23: =A17+10 -> 131 | B23: =B17+1 -> 4 | C23: 1 | D23: =D17+1 -> 3088 | E23: =CONCATENATE("主感悟-",B23) -> 主感悟-4 | F23: icon | G23: =G17+1 -> 3137 | H23: 星辰道启动期间释放的功法带有星辰之力，对敌人额外照成30%当前伤害 | I23: 99 | J23: =J17+1 -> 60104 | K23: 1 | L23: 1 | N23: =N17+1 -> 3088 | O23: =O17+1 -> 3137
A24: =A18+10 -> 132 | B24: =B18+1 -> 4 | C24: 2 | D24: =D18+1 -> 3088 | E24: =CONCATENATE("主感悟-",B24) -> 主感悟-4 | F24: icon | G24: =G18+1 -> 3137 | I24: 99 | J24: =J18+1 -> 60104 | K24: 1 | L24: 1 | N24: =N18+1 -> 3088 | O24: 3137
A25: 133 | B25: 4 | C25: 3 | D25: 3088 | E25: 主感悟-4 | F25: icon | G25: 3137 | I25: 99 | J25: 60104 | K25: 1 | L25: 1 | N25: 3088 | O25: 3137
A26: 134 | B26: 4 | C26: 4 | D26: 3088 | E26: 主感悟-4 | F26: icon | G26: 3137 | I26: 99 | J26: 60104 | K26: 1 | L26: 1 | N26: 3088 | O26: 3137
A27: 135 | B27: 4 | C27: 5 | D27: 3088 | E27: 主感悟-4 | F27: icon | G27: 3137 | I27: 99 | J27: 60104 | K27: 1 | L27: 1 | N27: 3088 | O27: 3137
A29: =A23+10 -> 141 | B29: =B23+1 -> 5 | C29: 1 | D29: =D23+1 -> 3089 | E29: =CONCATENATE("主感悟-",B29) -> 主感悟-5 | F29: icon | G29: =G23+1 -> 3138 | H29: 星辰之力打中敌人后，为期注入星辰印记，在星辰道结束时结算，没3层印记受到20%伤害 | I29: 99 | J29: =J23+1 -> 60105 | K29: 1 | L29: 1 | N29: =N23+1 -> 3089 | O29: =O23+1 -> 3138
A30: =A24+10 -> 142 | B30: =B24+1 -> 5 | C30: 2 | D30: =D24+1 -> 3089 | E30: =CONCATENATE("主感悟-",B30) -> 主感悟-5 | F30: icon | G30: =G24+1 -> 3138 | I30: 99 | J30: =J24+1 -> 60105 | K30: 1 | L30: 1 | N30: =N24+1 -> 3089 | O30: 3138
A31: 143 | B31: 5 | C31: 3 | D31: 3089 | E31: 主感悟-5 | F31: icon | G31: 3138 | I31: 99 | J31: 60105 | K31: 1 | L31: 1 | N31: 3089 | O31: 3138
A32: 144 | B32: 5 | C32: 4 | D32: 3089 | E32: 主感悟-5 | F32: icon | G32: 3138 | I32: 99 | J32: 60105 | K32: 1 | L32: 1 | N32: 3089 | O32: 3138
A33: 145 | B33: 5 | C33: 5 | D33: 3089 | E33: 主感悟-5 | F33: icon | G33: 3138 | I33: 99 | J33: 60105 | K33: 1 | L33: 1 | N33: 3089 | O33: 3138
A35: =A29+10 -> 151 | B35: =B29+1 -> 6 | C35: 1 | D35: =D29+1 -> 3090 | E35: =CONCATENATE("主感悟-",B35) -> 主感悟-6 | F35: icon | G35: =G29+1 -> 3139 | H35: 死亡时恢复30%最大生命 | I35: 99 | J35: =J29+1 -> 60106 | K35: 1 | L35: 1 | N35: =N29+1 -> 3090 | O35: =O29+1 -> 3139
A36: =A30+10 -> 152 | B36: =B30+1 -> 6 | C36: 2 | D36: =D30+1 -> 3090 | E36: =CONCATENATE("主感悟-",B36) -> 主感悟-6 | F36: icon | G36: =G30+1 -> 3139 | I36: 99 | J36: =J30+1 -> 60106 | K36: 1 | L36: 1 | N36: =N30+1 -> 3090 | O36: 3139
A37: 153 | B37: 6 | C37: 3 | D37: 3090 | E37: 主感悟-6 | F37: icon | G37: 3139 | I37: 99 | J37: 60106 | K37: 1 | L37: 1 | N37: 3090 | O37: 3139
A38: 154 | B38: 6 | C38: 4 | D38: 3090 | E38: 主感悟-6 | F38: icon | G38: 3139 | I38: 99 | J38: 60106 | K38: 1 | L38: 1 | N38: 3090 | O38: 3139
A39: 155 | B39: 6 | C39: 5 | D39: 3090 | E39: 主感悟-6 | F39: icon | G39: 3139 | I39: 99 | J39: 60106 | K39: 1 | L39: 1 | N39: 3090 | O39: 3139
A41: =A35+10 -> 161 | B41: =B35+1 -> 7 | C41: 1 | D41: =D35+1 -> 3091 | E41: =CONCATENATE("主感悟-",B41) -> 主感悟-7 | F41: icon | G41: =G35+1 -> 3140 | H41: 死亡后星辰道不在运转，转而获得200%伤害加成 | I41: 99 | J41: =J35+1 -> 60107 | K41: 1 | L41: 1 | N41: =N35+1 -> 3091 | O41: =O35+1 -> 3140
A42: =A36+10 -> 162 | B42: =B36+1 -> 7 | C42: 2 | D42: =D36+1 -> 3091 | E42: =CONCATENATE("主感悟-",B42) -> 主感悟-7 | F42: icon | G42: =G36+1 -> 3140 | I42: 99 | J42: =J36+1 -> 60107 | K42: 1 | L42: 1 | N42: =N36+1 -> 3091 | O42: 3140
A43: 163 | B43: 7 | C43: 3 | D43: 3091 | E43: 主感悟-7 | F43: icon | G43: 3140 | I43: 99 | J43: 60107 | K43: 1 | L43: 1 | N43: 3091 | O43: 3140
A44: 164 | B44: 7 | C44: 4 | D44: 3091 | E44: 主感悟-7 | F44: icon | G44: 3140 | I44: 99 | J44: 60107 | K44: 1 | L44: 1 | N44: 3091 | O44: 3140
A45: 165 | B45: =B39+1 -> 7 | C45: 5 | D45: 3091 | E45: 主感悟-7 | F45: icon | G45: 3140 | I45: 99 | J45: 60107 | K45: 1 | L45: 1 | N45: 3091 | O45: 3140
A47: =A41+10 -> 171 | B47: 111 | C47: 1 | D47: =D41+1 -> 3092 | E47: =CONCATENATE("感悟-",B47) -> 感悟-111 | F47: icon | G47: =G41+1 -> 3141 | H47: 攻击+2% | I47: 1 | J47: 2 | K47: 1 | L47: 1 | N47: =N41+1 -> 3092 | O47: =O41+1 -> 3141
A48: =A42+10 -> 172 | B48: 111 | C48: 2 | D48: =D42+1 -> 3092 | E48: =CONCATENATE("感悟-",B48) -> 感悟-111 | F48: icon | G48: =G42+1 -> 3141 | I48: 1 | J48: 3 | K48: 1 | L48: 1 | N48: =N42+1 -> 3092 | O48: 3141
A49: 173 | B49: 111 | C49: 3 | D49: 3092 | E49: 感悟-111 | F49: icon | G49: 3141 | I49: 1 | J49: 4 | K49: 1 | L49: 1 | N49: 3092 | O49: 3141
A50: 174 | B50: 111 | C50: 4 | D50: 3092 | E50: 感悟-111 | F50: icon | G50: 3141 | I50: 1 | J50: 5 | K50: 1 | L50: 1 | N50: 3092 | O50: 3141
A51: 175 | B51: 111 | C51: 5 | D51: 3092 | E51: 感悟-111 | F51: icon | G51: 3141 | I51: 1 | J51: 6 | K51: 1 | L51: 1 | N51: 3092 | O51: 3141
A53: =A47+10 -> 181 | B53: =B47+1 -> 112 | C53: 1 | D53: =D47+1 -> 3093 | E53: =CONCATENATE("感悟-",B53) -> 感悟-112 | F53: icon | G53: =G47+1 -> 3142 | H53: 最终伤害抵抗+1% | I53: 6 | J53: 2 | K53: 1 | L53: 1 | N53: =N47+1 -> 3093 | O53: =O47+1 -> 3142
A54: =A48+10 -> 182 | B54: =B48+1 -> 112 | C54: 2 | D54: =D48+1 -> 3093 | E54: =CONCATENATE("感悟-",B54) -> 感悟-112 | F54: icon | G54: =G48+1 -> 3142 | I54: 6 | J54: 3 | K54: 1 | L54: 1 | N54: =N48+1 -> 3093 | O54: 3142
A55: 183 | B55: 112 | C55: 3 | D55: 3093 | E55: 感悟-112 | F55: icon | G55: 3142 | I55: 6 | J55: 4 | K55: 1 | L55: 1 | N55: 3093 | O55: 3142
A56: 184 | B56: 112 | C56: 4 | D56: 3093 | E56: 感悟-112 | F56: icon | G56: 3142 | I56: 6 | J56: 5 | K56: 1 | L56: 1 | N56: 3093 | O56: 3142
A57: 185 | B57: 112 | C57: 5 | D57: 3093 | E57: 感悟-112 | F57: icon | G57: 3142 | I57: 6 | J57: 6 | K57: 1 | L57: 1 | N57: 3093 | O57: 3142
A59: =A53+10 -> 191 | B59: =B53+1 -> 113 | C59: 1 | D59: =D53+1 -> 3094 | E59: =CONCATENATE("感悟-",B59) -> 感悟-113 | F59: icon | G59: =G53+1 -> 3143 | H59: 对异常状态敌人伤害增加1% | I59: 7 | J59: 2 | K59: 1 | L59: 1 | N59: =N53+1 -> 3094 | O59: =O53+1 -> 3143
A60: =A54+10 -> 192 | B60: =B54+1 -> 113 | C60: 2 | D60: =D54+1 -> 3094 | E60: =CONCATENATE("感悟-",B60) -> 感悟-113 | F60: icon | G60: =G54+1 -> 3143 | I60: 7 | J60: 3 | K60: 1 | L60: 1 | N60: =N54+1 -> 3094 | O60: 3143
A61: 193 | B61: 113 | C61: 3 | D61: 3094 | E61: 感悟-113 | F61: icon | G61: 3143 | I61: 7 | J61: 4 | K61: 1 | L61: 1 | N61: 3094 | O61: 3143
A62: 194 | B62: 113 | C62: 4 | D62: 3094 | E62: 感悟-113 | F62: icon | G62: 3143 | I62: 7 | J62: 5 | K62: 1 | L62: 1 | N62: 3094 | O62: 3143
A63: 195 | B63: 113 | C63: 5 | D63: 3094 | E63: 感悟-113 | F63: icon | G63: 3143 | I63: 7 | J63: 6 | K63: 1 | L63: 1 | N63: 3094 | O63: 3143
A65: =A59+10 -> 201 | B65: =B59+1 -> 114 | C65: 1 | D65: =D59+1 -> 3095 | E65: =CONCATENATE("感悟-",B65) -> 感悟-114 | F65: icon | G65: =G59+1 -> 3144 | H65: 金木水火土任意一个属性伤害增加 | I65: 5 | J65: 106;1 | K65: 1 | L65: 1 | N65: =N59+1 -> 3095 | O65: =O59+1 -> 3144
A66: =A60+10 -> 202 | B66: =B60+1 -> 114 | C66: 2 | D66: =D60+1 -> 3095 | E66: =CONCATENATE("感悟-",B66) -> 感悟-114 | F66: icon | G66: =G60+1 -> 3144 | I66: 5 | J66: 106;2 | K66: 1 | L66: 1 | N66: =N60+1 -> 3095 | O66: 3144
A67: 203 | B67: 114 | C67: 3 | D67: 3095 | E67: 感悟-114 | F67: icon | G67: 3144 | I67: 5 | J67: 106;3 | K67: 1 | L67: 1 | N67: 3095 | O67: 3144
A68: 204 | B68: 114 | C68: 4 | D68: 3095 | E68: 感悟-114 | F68: icon | G68: 3144 | I68: 5 | J68: 106;4 | K68: 1 | L68: 1 | N68: 3095 | O68: 3144
A69: 205 | B69: 114 | C69: 5 | D69: 3095 | E69: 感悟-114 | F69: icon | G69: 3144 | I69: 5 | J69: 106;5 | K69: 1 | L69: 1 | N69: 3095 | O69: 3144
A71: =A65+10 -> 211 | B71: =B65+1 -> 115 | C71: 1 | D71: =D65+1 -> 3096 | E71: 火焰专精 | F71: icon | G71: =G65+1 -> 3145 | H71: 灼烧对敌人的伤害增加1% | I71: 8 | J71: 2 | K71: 1 | L71: 1 | N71: =N65+1 -> 3096 | O71: =O65+1 -> 3145
A72: =A66+10 -> 212 | B72: =B66+1 -> 115 | C72: 2 | D72: =D66+1 -> 3096 | E72: 火焰专精 | F72: icon | G72: =G66+1 -> 3145 | I72: 8 | J72: 3 | K72: 1 | L72: 1 | N72: =N66+1 -> 3096 | O72: 3145
A73: 213 | B73: 115 | C73: 3 | D73: 3096 | E73: 火焰专精 | F73: icon | G73: 3145 | I73: 8 | J73: 4 | K73: 1 | L73: 1 | N73: 3096 | O73: 3145
A74: 214 | B74: 115 | C74: 4 | D74: 3096 | E74: 火焰专精 | F74: icon | G74: 3145 | I74: 8 | J74: 5 | K74: 1 | L74: 1 | N74: 3096 | O74: 3145
A75: 215 | B75: 115 | C75: 5 | D75: 3096 | E75: 火焰专精 | F75: icon | G75: 3145 | I75: 8 | J75: 6 | K75: 1 | L75: 1 | N75: 3096 | O75: 3145
A77: =A71+10 -> 221 | B77: =B71+1 -> 116 | C77: 1 | D77: =D71+1 -> 3097 | E77: 毒专精 | F77: icon | G77: =G71+1 -> 3146 | H77: 毒照成的伤害+1%，且蔓延速度加快2% | I77: 9 | J77: 2;5 | K77: 1 | L77: 1 | N77: =N71+1 -> 3097 | O77: =O71+1 -> 3146
A78: =A72+10 -> 222 | B78: =B72+1 -> 116 | C78: 2 | D78: =D72+1 -> 3097 | E78: 毒专精 | F78: icon | G78: =G72+1 -> 3146 | I78: 9 | J78: 3;10 | K78: 1 | L78: 1 | N78: =N72+1 -> 3097 | O78: 3146
A79: 223 | B79: 116 | C79: 3 | D79: 3097 | E79: 毒专精 | F79: icon | G79: 3146 | I79: 9 | J79: 4;15 | K79: 1 | L79: 1 | N79: 3097 | O79: 3146
A80: 224 | B80: 116 | C80: 4 | D80: 3097 | E80: 毒专精 | F80: icon | G80: 3146 | I80: 9 | J80: 5;20 | K80: 1 | L80: 1 | N80: 3097 | O80: 3146
A81: 225 | B81: 116 | C81: 5 | D81: 3097 | E81: 毒专精 | F81: icon | G81: 3146 | I81: 9 | J81: 6;25 | K81: 1 | L81: 1 | N81: 3097 | O81: 3146
A83: =A77+10 -> 231 | B83: 121 | C83: 1 | D83: =D77+1 -> 3098 | E83: =CONCATENATE("感悟-",B83) -> 感悟-121 | F83: icon | G83: =G77+1 -> 3147 | H83: 功法强度+3% | I83: 2 | J83: 2 | K83: 1 | L83: 1 | N83: =N77+1 -> 3098 | O83: =O77+1 -> 3147
A84: =A78+10 -> 232 | B84: 121 | C84: 2 | D84: =D78+1 -> 3098 | E84: =CONCATENATE("感悟-",B84) -> 感悟-121 | F84: icon | G84: =G78+1 -> 3147 | I84: 2 | J84: 3 | K84: 1 | L84: 1 | N84: =N78+1 -> 3098 | O84: 3147
A85: 233 | B85: 121 | C85: 3 | D85: 3098 | E85: 感悟-121 | F85: icon | G85: 3147 | I85: 2 | J85: 4 | K85: 1 | L85: 1 | N85: 3098 | O85: 3147
A86: 234 | B86: 121 | C86: 4 | D86: 3098 | E86: 感悟-121 | F86: icon | G86: 3147 | I86: 2 | J86: 5 | K86: 1 | L86: 1 | N86: 3098 | O86: 3147
A87: 235 | B87: 121 | C87: 5 | D87: 3098 | E87: 感悟-121 | F87: icon | G87: 3147 | I87: 2 | J87: 6 | K87: 1 | L87: 1 | N87: 3098 | O87: 3147
A89: =A83+10 -> 241 | B89: =B83+1 -> 122 | C89: 1 | D89: =D83+1 -> 3099 | E89: =CONCATENATE("感悟-",B89) -> 感悟-122 | F89: icon | G89: =G83+1 -> 3148 | H89: 最终伤害抵抗+1% | I89: 6 | J89: 2 | K89: 1 | L89: 1 | N89: =N83+1 -> 3099 | O89: =O83+1 -> 3148
A90: =A84+10 -> 242 | B90: =B84+1 -> 122 | C90: 2 | D90: =D84+1 -> 3099 | E90: =CONCATENATE("感悟-",B90) -> 感悟-122 | F90: icon | G90: =G84+1 -> 3148 | I90: 6 | J90: 3 | K90: 1 | L90: 1 | N90: =N84+1 -> 3099 | O90: 3148
A91: 243 | B91: 122 | C91: 3 | D91: 3099 | E91: 感悟-122 | F91: icon | G91: 3148 | I91: 6 | J91: 4 | K91: 1 | L91: 1 | N91: 3099 | O91: 3148
A92: 244 | B92: 122 | C92: 4 | D92: 3099 | E92: 感悟-122 | F92: icon | G92: 3148 | I92: 6 | J92: 5 | K92: 1 | L92: 1 | N92: 3099 | O92: 3148
A93: 245 | B93: 122 | C93: 5 | D93: 3099 | E93: 感悟-122 | F93: icon | G93: 3148 | I93: 6 | J93: 6 | K93: 1 | L93: 1 | N93: 3099 | O93: 3148
A95: =A89+10 -> 251 | B95: =B89+1 -> 123 | C95: 1 | D95: =D89+1 -> 3100 | E95: =CONCATENATE("感悟-",B95) -> 感悟-123 | F95: icon | G95: =G89+1 -> 3149 | H95: 对异常状态敌人伤害增加1% | I95: 7 | J95: 2 | K95: 1 | L95: 1 | N95: =N89+1 -> 3100 | O95: =O89+1 -> 3149
A96: =A90+10 -> 252 | B96: =B90+1 -> 123 | C96: 2 | D96: =D90+1 -> 3100 | E96: =CONCATENATE("感悟-",B96) -> 感悟-123 | F96: icon | G96: =G90+1 -> 3149 | I96: 7 | J96: 3 | K96: 1 | L96: 1 | N96: =N90+1 -> 3100 | O96: 3149
A97: 253 | B97: 123 | C97: 3 | D97: 3100 | E97: 感悟-123 | F97: icon | G97: 3149 | I97: 7 | J97: 4 | K97: 1 | L97: 1 | N97: 3100 | O97: 3149
A98: 254 | B98: 123 | C98: 4 | D98: 3100 | E98: 感悟-123 | F98: icon | G98: 3149 | I98: 7 | J98: 5 | K98: 1 | L98: 1 | N98: 3100 | O98: 3149
A99: 255 | B99: 123 | C99: 5 | D99: 3100 | E99: 感悟-123 | F99: icon | G99: 3149 | I99: 7 | J99: 6 | K99: 1 | L99: 1 | N99: 3100 | O99: 3149
A101: =A95+10 -> 261 | B101: =B95+1 -> 124 | C101: 1 | D101: =D95+1 -> 3101 | E101: =CONCATENATE("感悟-",B101) -> 感悟-124 | F101: icon | G101: =G95+1 -> 3150 | H101: 金木水火土任意一个属性伤害增加 | I101: 5 | J101: 106;1 | K101: 1 | L101: 1 | N101: =N95+1 -> 3101 | O101: =O95+1 -> 3150
A102: =A96+10 -> 262 | B102: =B96+1 -> 124 | C102: 2 | D102: =D96+1 -> 3101 | E102: =CONCATENATE("感悟-",B102) -> 感悟-124 | F102: icon | G102: =G96+1 -> 3150 | I102: 5 | J102: 106;2 | K102: 1 | L102: 1 | N102: =N96+1 -> 3101 | O102: 3150
A103: 263 | B103: 124 | C103: 3 | D103: 3101 | E103: 感悟-124 | F103: icon | G103: 3150 | I103: 5 | J103: 106;3 | K103: 1 | L103: 1 | N103: 3101 | O103: 3150
A104: 264 | B104: 124 | C104: 4 | D104: 3101 | E104: 感悟-124 | F104: icon | G104: 3150 | I104: 5 | J104: 106;4 | K104: 1 | L104: 1 | N104: 3101 | O104: 3150
A105: 265 | B105: 124 | C105: 5 | D105: 3101 | E105: 感悟-124 | F105: icon | G105: 3150 | I105: 5 | J105: 106;5 | K105: 1 | L105: 1 | N105: 3101 | O105: 3150
A107: =A101+10 -> 271 | B107: =B101+1 -> 125 | C107: 1 | D107: =D101+1 -> 3102 | E107: 毒专精 | F107: icon | G107: =G101+1 -> 3151 | H107: 毒照成的伤害+1%，且蔓延速度加快2% | I107: 9 | J107: 2;5 | K107: 1 | L107: 1 | N107: =N101+1 -> 3102 | O107: =O101+1 -> 3151
A108: =A102+10 -> 272 | B108: =B102+1 -> 125 | C108: 2 | D108: =D102+1 -> 3102 | E108: 毒专精 | F108: icon | G108: =G102+1 -> 3151 | I108: 9 | J108: 3;10 | K108: 1 | L108: 1 | N108: =N102+1 -> 3102 | O108: 3151
A109: 273 | B109: 125 | C109: 3 | D109: 3102 | E109: 毒专精 | F109: icon | G109: 3151 | I109: 9 | J109: 4;15 | K109: 1 | L109: 1 | N109: 3102 | O109: 3151
A110: 274 | B110: 125 | C110: 4 | D110: 3102 | E110: 毒专精 | F110: icon | G110: 3151 | I110: 9 | J110: 5;20 | K110: 1 | L110: 1 | N110: 3102 | O110: 3151
A111: 275 | B111: 125 | C111: 5 | D111: 3102 | E111: 毒专精 | F111: icon | G111: 3151 | I111: 9 | J111: 6;25 | K111: 1 | L111: 1 | N111: 3102 | O111: 3151
A113: =A107+10 -> 281 | B113: =B107+1 -> 126 | C113: 1 | D113: =D107+1 -> 3103 | E113: 流血专精 | F113: icon | G113: =G107+1 -> 3152 | H113: 敌人流血伤害+1% | I113: 10 | J113: 2 | K113: 1 | L113: 1 | N113: =N107+1 -> 3103 | O113: =O107+1 -> 3152
A114: =A108+10 -> 282 | B114: =B108+1 -> 126 | C114: 2 | D114: =D108+1 -> 3103 | E114: 流血专精 | F114: icon | G114: =G108+1 -> 3152 | I114: 10 | J114: 3 | K114: 1 | L114: 1 | N114: =N108+1 -> 3103 | O114: 3152
A115: 283 | B115: 126 | C115: 3 | D115: 3103 | E115: 流血专精 | F115: icon | G115: 3152 | I115: 10 | J115: 4 | K115: 1 | L115: 1 | N115: 3103 | O115: 3152
A116: 284 | B116: 126 | C116: 4 | D116: 3103 | E116: 流血专精 | F116: icon | G116: 3152 | I116: 10 | J116: 5 | K116: 1 | L116: 1 | N116: 3103 | O116: 3152
A117: 285 | B117: 126 | C117: 5 | D117: 3103 | E117: 流血专精 | F117: icon | G117: 3152 | I117: 10 | J117: 6 | K117: 1 | L117: 1 | N117: 3103 | O117: 3152
A119: =A113+10 -> 291 | B119: 131 | C119: 1 | D119: =D113+1 -> 3104 | E119: =CONCATENATE("感悟-",B119) -> 感悟-131 | F119: icon | G119: =G113+1 -> 3153 | H119: 生命+2% | I119: 3 | J119: 2 | K119: 1 | L119: 1 | N119: =N113+1 -> 3104 | O119: =O113+1 -> 3153
A120: =A114+10 -> 292 | B120: 131 | C120: 2 | D120: =D114+1 -> 3104 | E120: =CONCATENATE("感悟-",B120) -> 感悟-131 | F120: icon | G120: =G114+1 -> 3153 | I120: 3 | J120: 3 | K120: 1 | L120: 1 | N120: =N114+1 -> 3104 | O120: 3153
A121: 293 | B121: 131 | C121: 3 | D121: 3104 | E121: 感悟-131 | F121: icon | G121: 3153 | I121: 3 | J121: 4 | K121: 1 | L121: 1 | N121: 3104 | O121: 3153
A122: 294 | B122: 131 | C122: 4 | D122: 3104 | E122: 感悟-131 | F122: icon | G122: 3153 | I122: 3 | J122: 5 | K122: 1 | L122: 1 | N122: 3104 | O122: 3153
A123: 295 | B123: 131 | C123: 5 | D123: 3104 | E123: 感悟-131 | F123: icon | G123: 3153 | I123: 3 | J123: 6 | K123: 1 | L123: 1 | N123: 3104 | O123: 3153
A125: =A119+10 -> 301 | B125: =B119+1 -> 132 | C125: 1 | D125: =D119+1 -> 3105 | E125: =CONCATENATE("感悟-",B125) -> 感悟-132 | F125: icon | G125: =G119+1 -> 3154 | H125: 最终伤害抵抗+1% | I125: 6 | J125: 2 | K125: 1 | L125: 1 | N125: =N119+1 -> 3105 | O125: =O119+1 -> 3154
A126: =A120+10 -> 302 | B126: =B120+1 -> 132 | C126: 2 | D126: =D120+1 -> 3105 | E126: =CONCATENATE("感悟-",B126) -> 感悟-132 | F126: icon | G126: =G120+1 -> 3154 | I126: 6 | J126: 3 | K126: 1 | L126: 1 | N126: =N120+1 -> 3105 | O126: 3154
A127: 303 | B127: 132 | C127: 3 | D127: 3105 | E127: 感悟-132 | F127: icon | G127: 3154 | I127: 6 | J127: 4 | K127: 1 | L127: 1 | N127: 3105 | O127: 3154
A128: 304 | B128: 132 | C128: 4 | D128: 3105 | E128: 感悟-132 | F128: icon | G128: 3154 | I128: 6 | J128: 5 | K128: 1 | L128: 1 | N128: 3105 | O128: 3154
A129: 305 | B129: 132 | C129: 5 | D129: 3105 | E129: 感悟-132 | F129: icon | G129: 3154 | I129: 6 | J129: 6 | K129: 1 | L129: 1 | N129: 3105 | O129: 3154
A131: =A125+10 -> 311 | B131: =B125+1 -> 133 | C131: 1 | D131: =D125+1 -> 3106 | E131: =CONCATENATE("感悟-",B131) -> 感悟-133 | F131: icon | G131: =G125+1 -> 3155 | H131: 对异常状态敌人伤害增加1% | I131: 7 | J131: 2 | K131: 1 | L131: 1 | N131: =N125+1 -> 3106 | O131: =O125+1 -> 3155
A132: =A126+10 -> 312 | B132: =B126+1 -> 133 | C132: 2 | D132: =D126+1 -> 3106 | E132: =CONCATENATE("感悟-",B132) -> 感悟-133 | F132: icon | G132: =G126+1 -> 3155 | I132: 7 | J132: 3 | K132: 1 | L132: 1 | N132: =N126+1 -> 3106 | O132: 3155
A133: 313 | B133: 133 | C133: 3 | D133: 3106 | E133: 感悟-133 | F133: icon | G133: 3155 | I133: 7 | J133: 4 | K133: 1 | L133: 1 | N133: 3106 | O133: 3155
A134: 314 | B134: 133 | C134: 4 | D134: 3106 | E134: 感悟-133 | F134: icon | G134: 3155 | I134: 7 | J134: 5 | K134: 1 | L134: 1 | N134: 3106 | O134: 3155
A135: 315 | B135: 133 | C135: 5 | D135: 3106 | E135: 感悟-133 | F135: icon | G135: 3155 | I135: 7 | J135: 6 | K135: 1 | L135: 1 | N135: 3106 | O135: 3155
A137: =A131+10 -> 321 | B137: =B131+1 -> 134 | C137: 1 | D137: =D131+1 -> 3107 | E137: =CONCATENATE("感悟-",B137) -> 感悟-134 | F137: icon | G137: =G131+1 -> 3156 | H137: 金木水火土任意一个属性伤害增加 | I137: 5 | J137: 106;1 | K137: 1 | L137: 1 | N137: =N131+1 -> 3107 | O137: =O131+1 -> 3156
A138: =A132+10 -> 322 | B138: =B132+1 -> 134 | C138: 2 | D138: =D132+1 -> 3107 | E138: =CONCATENATE("感悟-",B138) -> 感悟-134 | F138: icon | G138: =G132+1 -> 3156 | I138: 5 | J138: 106;2 | K138: 1 | L138: 1 | N138: =N132+1 -> 3107 | O138: 3156
A139: 323 | B139: 134 | C139: 3 | D139: 3107 | E139: 感悟-134 | F139: icon | G139: 3156 | I139: 5 | J139: 106;3 | K139: 1 | L139: 1 | N139: 3107 | O139: 3156
A140: 324 | B140: 134 | C140: 4 | D140: 3107 | E140: 感悟-134 | F140: icon | G140: 3156 | I140: 5 | J140: 106;4 | K140: 1 | L140: 1 | N140: 3107 | O140: 3156
A141: 325 | B141: 134 | C141: 5 | D141: 3107 | E141: 感悟-134 | F141: icon | G141: 3156 | I141: 5 | J141: 106;5 | K141: 1 | L141: 1 | N141: 3107 | O141: 3156
A143: =A137+10 -> 331 | B143: =B137+1 -> 135 | C143: 1 | D143: =D137+1 -> 3108 | E143: 流血专精 | F143: icon | G143: =G137+1 -> 3157 | H143: 敌人流血伤害+1% | I143: 10 | J143: 2 | K143: 1 | L143: 1 | N143: =N137+1 -> 3108 | O143: =O137+1 -> 3157
A144: =A138+10 -> 332 | B144: =B138+1 -> 135 | C144: 2 | D144: =D138+1 -> 3108 | E144: 流血专精 | F144: icon | G144: =G138+1 -> 3157 | I144: 10 | J144: 3 | K144: 1 | L144: 1 | N144: =N138+1 -> 3108 | O144: 3157
A145: 333 | B145: 135 | C145: 3 | D145: 3108 | E145: 流血专精 | F145: icon | G145: 3157 | I145: 10 | J145: 4 | K145: 1 | L145: 1 | N145: 3108 | O145: 3157
A146: 334 | B146: 135 | C146: 4 | D146: 3108 | E146: 流血专精 | F146: icon | G146: 3157 | I146: 10 | J146: 5 | K146: 1 | L146: 1 | N146: 3108 | O146: 3157
A147: 335 | B147: 135 | C147: 5 | D147: 3108 | E147: 流血专精 | F147: icon | G147: 3157 | I147: 10 | J147: 6 | K147: 1 | L147: 1 | N147: 3108 | O147: 3157
A149: =A143+10 -> 341 | B149: =B143+1 -> 136 | C149: 1 | D149: =D143+1 -> 3109 | E149: 火焰专精 | F149: icon | G149: =G143+1 -> 3158 | H149: 灼烧对敌人的伤害增加1% | I149: 8 | J149: 2 | K149: 1 | L149: 1 | N149: =N143+1 -> 3109 | O149: =O143+1 -> 3158
A150: =A144+10 -> 342 | B150: =B144+1 -> 136 | C150: 2 | D150: =D144+1 -> 3109 | E150: 火焰专精 | F150: icon | G150: =G144+1 -> 3158 | I150: 8 | J150: 3 | K150: 1 | L150: 1 | N150: =N144+1 -> 3109 | O150: 3158
A151: 343 | B151: 136 | C151: 3 | D151: 3109 | E151: 火焰专精 | F151: icon | G151: 3158 | I151: 8 | J151: 4 | K151: 1 | L151: 1 | N151: 3109 | O151: 3158
A152: 344 | B152: 136 | C152: 4 | D152: 3109 | E152: 火焰专精 | F152: icon | G152: 3158 | I152: 8 | J152: 5 | K152: 1 | L152: 1 | N152: 3109 | O152: 3158
A153: 345 | B153: 136 | C153: 5 | D153: 3109 | E153: 火焰专精 | F153: icon | G153: 3158 | I153: 8 | J153: 6 | K153: 1 | L153: 1 | N153: 3109 | O153: 3158
A155: =A149+10 -> 351 | B155: 141 | C155: 1 | D155: =D149+1 -> 3110 | E155: =CONCATENATE("感悟-",B155) -> 感悟-141 | F155: icon | G155: =G149+1 -> 3159 | H155: 防御+5% | I155: 4 | J155: 4 | K155: 1 | L155: 1 | N155: =N149+1 -> 3110 | O155: =O149+1 -> 3159
A156: =A150+10 -> 352 | B156: 141 | C156: 2 | D156: =D150+1 -> 3110 | E156: =CONCATENATE("感悟-",B156) -> 感悟-141 | F156: icon | G156: =G150+1 -> 3159 | I156: 4 | J156: 6 | K156: 1 | L156: 1 | N156: =N150+1 -> 3110 | O156: 3159
A157: 353 | B157: 141 | C157: 3 | D157: 3110 | E157: 感悟-141 | F157: icon | G157: 3159 | I157: 4 | J157: 8 | K157: 1 | L157: 1 | N157: 3110 | O157: 3159
A158: 354 | B158: 141 | C158: 4 | D158: 3110 | E158: 感悟-141 | F158: icon | G158: 3159 | I158: 4 | J158: 10 | K158: 1 | L158: 1 | N158: 3110 | O158: 3159
A159: 355 | B159: 141 | C159: 5 | D159: 3110 | E159: 感悟-141 | F159: icon | G159: 3159 | I159: 4 | J159: 12 | K159: 1 | L159: 1 | N159: 3110 | O159: 3159
A161: =A155+10 -> 361 | B161: =B155+1 -> 142 | C161: 1 | D161: =D155+1 -> 3111 | E161: =CONCATENATE("感悟-",B161) -> 感悟-142 | F161: icon | G161: =G155+1 -> 3160 | H161: 最终伤害抵抗+1% | I161: 6 | J161: 2 | K161: 1 | L161: 1 | N161: =N155+1 -> 3111 | O161: =O155+1 -> 3160
A162: =A156+10 -> 362 | B162: =B156+1 -> 142 | C162: 2 | D162: =D156+1 -> 3111 | E162: =CONCATENATE("感悟-",B162) -> 感悟-142 | F162: icon | G162: =G156+1 -> 3160 | I162: 6 | J162: 3 | K162: 1 | L162: 1 | N162: =N156+1 -> 3111 | O162: 3160
A163: 363 | B163: 142 | C163: 3 | D163: 3111 | E163: 感悟-142 | F163: icon | G163: 3160 | I163: 6 | J163: 4 | K163: 1 | L163: 1 | N163: 3111 | O163: 3160
A164: 364 | B164: 142 | C164: 4 | D164: 3111 | E164: 感悟-142 | F164: icon | G164: 3160 | I164: 6 | J164: 5 | K164: 1 | L164: 1 | N164: 3111 | O164: 3160
A165: 365 | B165: 142 | C165: 5 | D165: 3111 | E165: 感悟-142 | F165: icon | G165: 3160 | I165: 6 | J165: 6 | K165: 1 | L165: 1 | N165: 3111 | O165: 3160
A167: =A161+10 -> 371 | B167: =B161+1 -> 143 | C167: 1 | D167: =D161+1 -> 3112 | E167: =CONCATENATE("感悟-",B167) -> 感悟-143 | F167: icon | G167: =G161+1 -> 3161 | H167: 对异常状态敌人伤害增加1% | I167: 7 | J167: 2 | K167: 1 | L167: 1 | N167: =N161+1 -> 3112 | O167: =O161+1 -> 3161
A168: =A162+10 -> 372 | B168: =B162+1 -> 143 | C168: 2 | D168: =D162+1 -> 3112 | E168: =CONCATENATE("感悟-",B168) -> 感悟-143 | F168: icon | G168: =G162+1 -> 3161 | I168: 7 | J168: 3 | K168: 1 | L168: 1 | N168: =N162+1 -> 3112 | O168: 3161
A169: 373 | B169: 143 | C169: 3 | D169: 3112 | E169: 感悟-143 | F169: icon | G169: 3161 | I169: 7 | J169: 4 | K169: 1 | L169: 1 | N169: 3112 | O169: 3161
A170: 374 | B170: 143 | C170: 4 | D170: 3112 | E170: 感悟-143 | F170: icon | G170: 3161 | I170: 7 | J170: 5 | K170: 1 | L170: 1 | N170: 3112 | O170: 3161
A171: 375 | B171: 143 | C171: 5 | D171: 3112 | E171: 感悟-143 | F171: icon | G171: 3161 | I171: 7 | J171: 6 | K171: 1 | L171: 1 | N171: 3112 | O171: 3161
A173: =A167+10 -> 381 | B173: =B167+1 -> 144 | C173: 1 | D173: =D167+1 -> 3113 | E173: =CONCATENATE("感悟-",B173) -> 感悟-144 | F173: icon | G173: =G167+1 -> 3162 | H173: 金木水火土任意一个属性伤害增加 | I173: 5 | J173: 106;1 | K173: 1 | L173: 1 | N173: =N167+1 -> 3113 | O173: =O167+1 -> 3162
A174: =A168+10 -> 382 | B174: =B168+1 -> 144 | C174: 2 | D174: =D168+1 -> 3113 | E174: =CONCATENATE("感悟-",B174) -> 感悟-144 | F174: icon | G174: =G168+1 -> 3162 | I174: 5 | J174: 106;2 | K174: 1 | L174: 1 | N174: =N168+1 -> 3113 | O174: 3162
A175: 383 | B175: 144 | C175: 3 | D175: 3113 | E175: 感悟-144 | F175: icon | G175: 3162 | I175: 5 | J175: 106;3 | K175: 1 | L175: 1 | N175: 3113 | O175: 3162
A176: 384 | B176: 144 | C176: 4 | D176: 3113 | E176: 感悟-144 | F176: icon | G176: 3162 | I176: 5 | J176: 106;4 | K176: 1 | L176: 1 | N176: 3113 | O176: 3162
A177: 385 | B177: 144 | C177: 5 | D177: 3113 | E177: 感悟-144 | F177: icon | G177: 3162 | I177: 5 | J177: 106;5 | K177: 1 | L177: 1 | N177: 3113 | O177: 3162
A179: =A173+10 -> 391 | B179: =B173+1 -> 145 | C179: 1 | D179: =D173+1 -> 3114 | E179: 寒气专精 | F179: icon | G179: =G173+1 -> 3163 | H179: 减速效果+1% | I179: 11 | J179: 2 | K179: 1 | L179: 1 | N179: =N173+1 -> 3114 | O179: =O173+1 -> 3163
A180: =A174+10 -> 392 | B180: =B174+1 -> 145 | C180: 2 | D180: =D174+1 -> 3114 | E180: 寒气专精 | F180: icon | G180: =G174+1 -> 3163 | I180: 11 | J180: 3 | K180: 1 | L180: 1 | N180: =N174+1 -> 3114 | O180: 3163
A181: 393 | B181: 145 | C181: 3 | D181: 3114 | E181: 寒气专精 | F181: icon | G181: 3163 | I181: 11 | J181: 4 | K181: 1 | L181: 1 | N181: 3114 | O181: 3163
A182: 394 | B182: 145 | C182: 4 | D182: 3114 | E182: 寒气专精 | F182: icon | G182: 3163 | I182: 11 | J182: 5 | K182: 1 | L182: 1 | N182: 3114 | O182: 3163
A183: 395 | B183: 145 | C183: 5 | D183: 3114 | E183: 寒气专精 | F183: icon | G183: 3163 | I183: 11 | J183: 6 | K183: 1 | L183: 1 | N183: 3114 | O183: 3163
A185: =A179+10 -> 401 | B185: =B179+1 -> 146 | C185: 1 | D185: =D179+1 -> 3115 | E185: 土专精 | F185: icon | G185: =G179+1 -> 3164 | H185: 提升细尘的累计速度（加快封锁经脉） | I185: 12 | J185: 2 | K185: 1 | L185: 1 | N185: =N179+1 -> 3115 | O185: =O179+1 -> 3164
A186: =A180+10 -> 402 | B186: =B180+1 -> 146 | C186: 2 | D186: =D180+1 -> 3115 | E186: 土专精 | F186: icon | G186: =G180+1 -> 3164 | I186: 12 | J186: 3 | K186: 1 | L186: 1 | N186: =N180+1 -> 3115 | O186: 3164
A187: 403 | B187: 146 | C187: 3 | D187: 3115 | E187: 土专精 | F187: icon | G187: 3164 | I187: 12 | J187: 4 | K187: 1 | L187: 1 | N187: 3115 | O187: 3164
A188: 404 | B188: 146 | C188: 4 | D188: 3115 | E188: 土专精 | F188: icon | G188: 3164 | I188: 12 | J188: 5 | K188: 1 | L188: 1 | N188: 3115 | O188: 3164
A189: 405 | B189: 146 | C189: 5 | D189: 3115 | E189: 土专精 | F189: icon | G189: 3164 | I189: 12 | J189: 6 | K189: 1 | L189: 1 | N189: 3115 | O189: 3164
A191: =A185+10 -> 411 | B191: 151 | C191: 1 | D191: =D185+1 -> 3116 | E191: =CONCATENATE("感悟-",B191) -> 感悟-151 | F191: icon | G191: =G185+1 -> 3165 | H191: 攻击+2% | I191: 1 | J191: 2 | K191: 1 | L191: 1 | N191: =N185+1 -> 3116 | O191: =O185+1 -> 3165
A192: =A186+10 -> 412 | B192: =B191 -> 151 | C192: 2 | D192: =D186+1 -> 3116 | E192: =CONCATENATE("感悟-",B192) -> 感悟-151 | F192: icon | G192: =G186+1 -> 3165 | I192: 1 | J192: 3 | K192: 1 | L192: 1 | N192: =N186+1 -> 3116 | O192: 3165
A193: 413 | B193: =B192 -> 151 | C193: 3 | D193: 3116 | E193: 感悟-151 | F193: icon | G193: 3165 | I193: 1 | J193: 4 | K193: 1 | L193: 1 | N193: 3116 | O193: 3165
A194: 414 | B194: 151 | C194: 4 | D194: 3116 | E194: 感悟-151 | F194: icon | G194: 3165 | I194: 1 | J194: 5 | K194: 1 | L194: 1 | N194: 3116 | O194: 3165
A195: 415 | B195: 151 | C195: 5 | D195: 3116 | E195: 感悟-151 | F195: icon | G195: 3165 | I195: 1 | J195: 6 | K195: 1 | L195: 1 | N195: 3116 | O195: 3165
A197: =A191+10 -> 421 | B197: =B191+1 -> 152 | C197: 1 | D197: =D191+1 -> 3117 | E197: =CONCATENATE("感悟-",B197) -> 感悟-152 | F197: icon | G197: =G191+1 -> 3166 | H197: 最终伤害抵抗+1% | I197: 6 | J197: 2 | K197: 1 | L197: 1 | N197: =N191+1 -> 3117 | O197: =O191+1 -> 3166
A198: =A192+10 -> 422 | B198: =B192+1 -> 152 | C198: 2 | D198: =D192+1 -> 3117 | E198: =CONCATENATE("感悟-",B198) -> 感悟-152 | F198: icon | G198: =G192+1 -> 3166 | I198: 6 | J198: 3 | K198: 1 | L198: 1 | N198: =N192+1 -> 3117 | O198: 3166
A199: 423 | B199: 152 | C199: 3 | D199: 3117 | E199: 感悟-152 | F199: icon | G199: 3166 | I199: 6 | J199: 4 | K199: 1 | L199: 1 | N199: 3117 | O199: 3166
A200: 424 | B200: 152 | C200: 4 | D200: 3117 | E200: 感悟-152 | F200: icon | G200: 3166 | I200: 6 | J200: 5 | K200: 1 | L200: 1 | N200: 3117 | O200: 3166
A201: 425 | B201: 152 | C201: 5 | D201: 3117 | E201: 感悟-152 | F201: icon | G201: 3166 | I201: 6 | J201: 6 | K201: 1 | L201: 1 | N201: 3117 | O201: 3166
A203: =A197+10 -> 431 | B203: =B197+1 -> 153 | C203: 1 | D203: =D197+1 -> 3118 | E203: =CONCATENATE("感悟-",B203) -> 感悟-153 | F203: icon | G203: =G197+1 -> 3167 | H203: 对异常状态敌人伤害增加1% | I203: 7 | J203: 2 | K203: 1 | L203: 1 | N203: =N197+1 -> 3118 | O203: =O197+1 -> 3167
A204: =A198+10 -> 432 | B204: =B198+1 -> 153 | C204: 2 | D204: =D198+1 -> 3118 | E204: =CONCATENATE("感悟-",B204) -> 感悟-153 | F204: icon | G204: =G198+1 -> 3167 | I204: 7 | J204: 3 | K204: 1 | L204: 1 | N204: =N198+1 -> 3118 | O204: 3167
A205: 433 | B205: 153 | C205: 3 | D205: 3118 | E205: 感悟-153 | F205: icon | G205: 3167 | I205: 7 | J205: 4 | K205: 1 | L205: 1 | N205: 3118 | O205: 3167
A206: 434 | B206: 153 | C206: 4 | D206: 3118 | E206: 感悟-153 | F206: icon | G206: 3167 | I206: 7 | J206: 5 | K206: 1 | L206: 1 | N206: 3118 | O206: 3167
A207: 435 | B207: 153 | C207: 5 | D207: 3118 | E207: 感悟-153 | F207: icon | G207: 3167 | I207: 7 | J207: 6 | K207: 1 | L207: 1 | N207: 3118 | O207: 3167
A209: =A203+10 -> 441 | B209: =B203+1 -> 154 | C209: 1 | D209: =D203+1 -> 3119 | E209: =CONCATENATE("感悟-",B209) -> 感悟-154 | F209: icon | G209: =G203+1 -> 3168 | H209: 金木水火土任意一个属性伤害增加 | I209: 5 | J209: 106;1 | K209: 1 | L209: 1 | N209: =N203+1 -> 3119 | O209: =O203+1 -> 3168
A210: =A204+10 -> 442 | B210: =B204+1 -> 154 | C210: 2 | D210: =D204+1 -> 3119 | E210: =CONCATENATE("感悟-",B210) -> 感悟-154 | F210: icon | G210: =G204+1 -> 3168 | I210: 5 | J210: 106;2 | K210: 1 | L210: 1 | N210: =N204+1 -> 3119 | O210: 3168
A211: 443 | B211: 154 | C211: 3 | D211: 3119 | E211: 感悟-154 | F211: icon | G211: 3168 | I211: 5 | J211: 106;3 | K211: 1 | L211: 1 | N211: 3119 | O211: 3168
A212: 444 | B212: 154 | C212: 4 | D212: 3119 | E212: 感悟-154 | F212: icon | G212: 3168 | I212: 5 | J212: 106;4 | K212: 1 | L212: 1 | N212: 3119 | O212: 3168
A213: 445 | B213: 154 | C213: 5 | D213: 3119 | E213: 感悟-154 | F213: icon | G213: 3168 | I213: 5 | J213: 106;5 | K213: 1 | L213: 1 | N213: 3119 | O213: 3168
A215: =A209+10 -> 451 | B215: =B209+1 -> 155 | C215: 1 | D215: =D209+1 -> 3120 | E215: 土专精 | F215: icon | G215: =G209+1 -> 3169 | H215: 提升细尘的累计速度（加快封锁经脉） | I215: 12 | J215: 2 | K215: 1 | L215: 1 | N215: =N209+1 -> 3120 | O215: =O209+1 -> 3169
A216: =A210+10 -> 452 | B216: =B210+1 -> 155 | C216: 2 | D216: =D210+1 -> 3120 | E216: 土专精 | F216: icon | G216: =G210+1 -> 3169 | I216: 12 | J216: 3 | K216: 1 | L216: 1 | N216: =N210+1 -> 3120 | O216: 3169
A217: 453 | B217: 155 | C217: 3 | D217: 3120 | E217: 土专精 | F217: icon | G217: 3169 | I217: 12 | J217: 4 | K217: 1 | L217: 1 | N217: 3120 | O217: 3169
A218: 454 | B218: 155 | C218: 4 | D218: 3120 | E218: 土专精 | F218: icon | G218: 3169 | I218: 12 | J218: 5 | K218: 1 | L218: 1 | N218: 3120 | O218: 3169
A219: 455 | B219: 155 | C219: 5 | D219: 3120 | E219: 土专精 | F219: icon | G219: 3169 | I219: 12 | J219: 6 | K219: 1 | L219: 1 | N219: 3120 | O219: 3169
A221: =A215+10 -> 461 | B221: =B215+1 -> 156 | C221: 1 | D221: =D215+1 -> 3121 | E221: 寒气专精 | F221: icon | G221: =G215+1 -> 3170 | H221: 减速效果+1% | I221: 11 | J221: 2 | K221: 1 | L221: 1 | N221: =N215+1 -> 3121 | O221: =O215+1 -> 3170
A222: =A216+10 -> 462 | B222: =B216+1 -> 156 | C222: 2 | D222: =D216+1 -> 3121 | E222: 寒气专精 | F222: icon | G222: =G216+1 -> 3170 | I222: 11 | J222: 3 | K222: 1 | L222: 1 | N222: =N216+1 -> 3121 | O222: 3170
A223: 463 | B223: 156 | C223: 3 | D223: 3121 | E223: 寒气专精 | F223: icon | G223: 3170 | I223: 11 | J223: 4 | K223: 1 | L223: 1 | N223: 3121 | O223: 3170
A224: 464 | B224: 156 | C224: 4 | D224: 3121 | E224: 寒气专精 | F224: icon | G224: 3170 | I224: 11 | J224: 5 | K224: 1 | L224: 1 | N224: 3121 | O224: 3170
A225: 465 | B225: 156 | C225: 5 | D225: 3121 | E225: 寒气专精 | F225: icon | G225: 3170 | I225: 11 | J225: 6 | K225: 1 | L225: 1 | N225: 3121 | O225: 3170
A227: =A221+10 -> 471 | B227: 161 | C227: 1 | D227: =D221+1 -> 3122 | E227: =CONCATENATE("感悟-",B227) -> 感悟-161 | F227: icon | G227: =G221+1 -> 3171 | H227: 攻击+2% | I227: 1 | J227: 2 | K227: 1 | L227: 1 | N227: =N221+1 -> 3122 | O227: =O221+1 -> 3171
A228: =A222+10 -> 472 | B228: =B227 -> 161 | C228: 2 | D228: =D222+1 -> 3122 | E228: =CONCATENATE("感悟-",B228) -> 感悟-161 | F228: icon | G228: =G222+1 -> 3171 | I228: 1 | J228: 3 | K228: 1 | L228: 1 | N228: =N222+1 -> 3122 | O228: 3171
A229: 473 | B229: =B228 -> 161 | C229: 3 | D229: 3122 | E229: 感悟-161 | F229: icon | G229: 3171 | I229: 1 | J229: 4 | K229: 1 | L229: 1 | N229: 3122 | O229: 3171
A230: 474 | B230: 161 | C230: 4 | D230: 3122 | E230: 感悟-161 | F230: icon | G230: 3171 | I230: 1 | J230: 5 | K230: 1 | L230: 1 | N230: 3122 | O230: 3171
A231: 475 | B231: 161 | C231: 5 | D231: 3122 | E231: 感悟-161 | F231: icon | G231: 3171 | I231: 1 | J231: 6 | K231: 1 | L231: 1 | N231: 3122 | O231: 3171
A233: =A227+10 -> 481 | B233: =B227+1 -> 162 | C233: 1 | D233: =D227+1 -> 3123 | E233: =CONCATENATE("感悟-",B233) -> 感悟-162 | F233: icon | G233: =G227+1 -> 3172 | H233: 最终伤害抵抗+1% | I233: 6 | J233: 2 | K233: 1 | L233: 1 | N233: =N227+1 -> 3123 | O233: =O227+1 -> 3172
A234: =A228+10 -> 482 | B234: =B228+1 -> 162 | C234: 2 | D234: =D228+1 -> 3123 | E234: =CONCATENATE("感悟-",B234) -> 感悟-162 | F234: icon | G234: =G228+1 -> 3172 | I234: 6 | J234: 3 | K234: 1 | L234: 1 | N234: =N228+1 -> 3123 | O234: 3172
A235: 483 | B235: 162 | C235: 3 | D235: 3123 | E235: 感悟-162 | F235: icon | G235: 3172 | I235: 6 | J235: 4 | K235: 1 | L235: 1 | N235: 3123 | O235: 3172
A236: 484 | B236: 162 | C236: 4 | D236: 3123 | E236: 感悟-162 | F236: icon | G236: 3172 | I236: 6 | J236: 5 | K236: 1 | L236: 1 | N236: 3123 | O236: 3172
A237: 485 | B237: 162 | C237: 5 | D237: 3123 | E237: 感悟-162 | F237: icon | G237: 3172 | I237: 6 | J237: 6 | K237: 1 | L237: 1 | N237: 3123 | O237: 3172
A239: =A233+10 -> 491 | B239: =B233+1 -> 163 | C239: 1 | D239: =D233+1 -> 3124 | E239: =CONCATENATE("感悟-",B239) -> 感悟-163 | F239: icon | G239: =G233+1 -> 3173 | H239: 对异常状态敌人伤害增加1% | I239: 7 | J239: 2 | K239: 1 | L239: 1 | N239: =N233+1 -> 3124 | O239: =O233+1 -> 3173
A240: =A234+10 -> 492 | B240: =B234+1 -> 163 | C240: 2 | D240: =D234+1 -> 3124 | E240: =CONCATENATE("感悟-",B240) -> 感悟-163 | F240: icon | G240: =G234+1 -> 3173 | I240: 7 | J240: 3 | K240: 1 | L240: 1 | N240: =N234+1 -> 3124 | O240: 3173
... 48 more rows

Sheet 条件类型
A1: 效果类型 | B1: 参数1 | C1: 参数2
A2: 1=攻击力 | B2: 加的值
A3: 2=功法强度 | B3: 加的值
A4: 3=生命值 | B4: 加的值
A5: 4=防御 | B5: 加的值
A6: 5=灵根 | B6: 灵根类型 | C6: 加的值
A7: 6=最终伤害抵抗 | B7: 加的值
A8: 7=异常状态伤害增加 | B8: 加的值
A9: 99=skill表ID | B9: 技能表Id
A10: 8=火焰专精 | B10: 增加的伤害百分比 | D10: 灼烧对敌人的伤害增加1%
A11: 9=毒专精 | B11: 伤害百分比 | C11: 蔓延速度加快百分比 | D11: 毒照成的伤害+1%，且蔓延速度加快2%
A12: 10=流血专精 | B12: 流血伤害百分比 | D12: 敌人流血伤害+1%
A13: 11=寒气专精 | B13: 减速效果增加百分比 | D13: 减速效果+1%
A14: 12=土专精 | B14: 速度提升百分比 | D14: 提升细尘的累计速度（加快封锁经脉）
